fUSD/lending_fUSD_20240907
["ID","MTS","AMOUNT","RATE_DAILY","PERIOD"]
[337457090,1725675099359,-1273.63,0.00014798,2]
[337457091,1725675099368,-620.66,0.00014798,2]
[337457092,1725675099378,-461.44842643,0.00014798,2]
[337457093,1725675099386,-881.33,0.00014798,2]
[337457094,1725675099396,-500.0,0.00014798,2]
[337457095,1725675099406,-500.0,0.00014798,2]
[337457096,1725675099416,-500.0,0.00014798,2]
[337457097,1725675099426,-566.43,0.00014798,2]
[337457098,1725675099436,-1039.71,0.00014798,2]
[337457099,1725675099448,-500.0,0.00014798,2]
[337457100,1725675099457,-535.86,0.00014798,2]
[337457101,1725675099467,-500.0,0.00014798,2]
[337457102,1725675099476,-500.0,0.00014798,2]
[337457103,1725675099486,-500.0,0.00014798,2]
[337457104,1725675099495,-500.0,0.00014798,2]
[337457105,1725675099505,-639.84,0.00014798,2]
[337457106,1725675099515,-500.0,0.00014798,2]
[337457107,1725675099525,-1226.16,0.00014798,2]
[337457108,1725675099535,-500.0,0.00014798,2]
[337457109,1725675099544,-1079.36,0.00014798,2]
[337457110,1725675099553,-900.85,0.00014798,2]
[337457111,1725675099562,-826.16,0.00014798,2]
[337457112,1725675099571,-568.35,0.00014798,2]
[337457113,1725675099580,-854.94,0.00014798,2]
[337457114,1725675099589,-500.0,0.00014798,2]
[337457115,1725675099599,-500.0,0.00014798,2]
[337457116,1725675099609,-674.07,0.00014798,2]
[337457117,1725675099618,-1483.860352,0.00014798,2]
[337457118,1725675099630,-500.0,0.00014798,2]
[337457119,1725675099641,-1483.860352,0.00014798,2]
[337457120,1725675099650,-500.0,0.00014798,2]
[337457121,1725675099660,-500.0,0.00014798,2]
[337457122,1725675099671,-500.0,0.00014798,2]
[337457123,1725675099681,-989.42,0.00014798,2]
[337457124,1725675099691,-1367.97,0.00014798,2]
[337457125,1725675099700,-672.33,0.00014798,2]
[337457126,1725675099710,-915.01,0.00014798,2]
[337457127,1725675099720,-500.0,0.00014798,2]
[337457128,1725675099730,-724.5,0.00014798,2]
[337457129,1725675099739,-500.0,0.00014798,2]
[337457130,1725675099750,-500.0,0.00014798,2]
[337457131,1725675099759,-729.49,0.00014798,2]
[337457132,1725675099768,-750.39,0.00014798,2]
[337457133,1725675099778,-683.34,0.00014798,2]
[337457134,1725675099787,-500.0,0.00014798,2]
[337457135,1725675099797,-840.66,0.00014798,2]
[337457136,1725675099807,-500.0,0.00014798,2]
[337457137,1725675099817,-500.0,0.00014798,2]
[337457138,1725675099827,-550.66,0.00014798,2]
[337457139,1725675099837,-500.0,0.00014798,2]
[337457140,1725675099847,-500.0,0.00014798,2]
[337457141,1725675099856,-305.41395405,0.00014798,2]
[337457142,1725675099866,-500.0,0.00014798,2]
[337457143,1725675099876,-832.59,0.00014798,2]
[337457144,1725675099886,-500.0,0.00014798,2]
[337457145,1725675099897,-500.0,0.00014798,2]
[337457146,1725675099907,-500.0,0.00014798,2]
[337457147,1725675099916,-500.0,0.00014798,2]
[337457148,1725675099926,-500.0,0.00014798,2]
[337457149,1725675099937,-500.0,0.00014798,2]
[337457150,1725675099947,-1416.38,0.00014798,2]
[337457151,1725675099958,-331.36548922,0.00014798,2]
[337457152,1725675099968,-556.71200031,0.00014798,2]
[337457153,1725675099978,-500.0,0.00014798,2]
[337457154,1725675099988,-665.15,0.00014798,2]
[337457155,1725675099998,-500.0,0.00014798,2]
[337457156,1725675100008,-1414.35,0.00014798,2]
[337457157,1725675100018,-608.13,0.00014798,2]
[337457158,1725675100029,-500.0,0.00014798,2]
[337457159,1725675100040,-500.0,0.00014798,2]
[337457160,1725675100050,-490.96940385,0.00014798,2]
[337457161,1725675100060,-500.0,0.00014798,2]
[337457162,1725675100070,-859.7,0.00014798,2]
[337457163,1725675100080,-783.57,0.00014798,2]
[337457164,1725675100090,-668.69,0.00014798,2]
[337457165,1725675100100,-500.0,0.00014798,2]
[337457166,1725675100109,-615.11,0.00014798,2]
[337457167,1725675100119,-500.0,0.00014798,2]
[337457168,1725675100129,-500.0,0.00014798,2]
[337457169,1725675100139,-500.0,0.00014798,2]
[337457170,1725675100149,-542.08,0.00014798,2]
[337457171,1725675100159,-699.53,0.00014798,2]
[337457172,1725675100169,-683.05,0.00014798,2]
[337457173,1725675100179,-1859.8,0.00014798,2]
[337457174,1725675100189,-527.39,0.00014798,2]
[337457175,1725675100200,-773.39,0.00014798,2]
[337457176,1725675100210,-2581.59,0.00014798,2]
[337457177,1725675100220,-500.0,0.00014798,2]
[337457178,1725675100231,-615.022642,0.00014798,2]
[337457179,1725675100241,-559.78,0.00014798,2]
[337457180,1725675100251,-151.0,0.00014798,2]
[337457181,1725675100261,-1824.1,0.00014798,2]
[337457182,1725675100271,-500.0,0.00014798,2]
[337457183,1725675100281,-500.0,0.00014798,2]
[337457184,1725675100290,-658.36,0.00014798,2]
[337457185,1725675100301,-500.0,0.00014798,2]
[337457186,1725675100311,-1523.29,0.00014798,2]
[337457187,1725675100322,-1349.37,0.00014798,2]
[337457188,1725675100332,-151.0,0.00014798,2]
[337457189,1725675100342,-751.28,0.00014798,2]
[337457190,1725675100352,-500.0,0.00014798,2]
[337457191,1725675100361,-1032.08,0.00014798,2]
[337457192,1725675100371,-500.0,0.00014798,2]
[337457193,1725675100380,-662.78,0.00014798,2]
[337457194,1725675100390,-627.77,0.00014798,2]
[337457195,1725675100400,-6734.47,0.00014798,2]
[337457196,1725675100410,-643.39,0.00014798,2]
[337457197,1725675100419,-1888.51,0.00014798,2]
[337457198,1725675100430,-678.47,0.00014798,2]
[337457199,1725675100441,-596.1,0.00014798,2]
[337457200,1725675100451,-3787.08,0.00014798,2]
[337457201,1725675100461,-324.69832,0.00014798,2]
[337457202,1725675100470,-500.0,0.00014798,2]
[337457203,1725675100481,-661.08,0.00014798,2]
[337457204,1725675100492,-324.69832,0.00014798,2]
[337457205,1725675100502,-500.0,0.00014798,2]
[337457206,1725675100511,-500.0,0.00014798,2]
[337457207,1725675100521,-500.0,0.00014798,2]
[337457208,1725675100531,-4840.058022,0.00014798,2]
[337457209,1725675100540,-260.540861,0.00014798,2]
[337457210,1725675100550,-179.014698,0.00014798,2]
[337457211,1725675100560,-500.0,0.00014798,2]
[337457212,1725675100570,-500.0,0.00014798,2]
[337457213,1725675100579,-500.0,0.00014798,2]
[337457214,1725675100589,-500.0,0.00014798,2]
[337457215,1725675100599,-151.0,0.00014798,2]
[337457216,1725675100609,-500.0,0.00014798,2]
[337457217,1725675100619,-509.51,0.00014798,2]
[337457218,1725675100629,-500.0,0.00014798,2]
[337457219,1725675100639,-500.0,0.00014798,2]
[337457220,1725675100649,-500.0,0.00014798,2]
[337457221,1725675100659,-500.0,0.00014798,2]
[337457222,1725675100670,-870.93,0.00014798,2]
[337457223,1725675100682,-500.0,0.00014798,2]
[337457224,1725675100692,-613.69,0.00014798,2]
[337457225,1725675100702,-500.0,0.00014798,2]
[337457226,1725675100712,-151.0,0.00014798,2]
[337457227,1725675100721,-620.32,0.00014798,2]
[337457228,1725675100741,-500.0,0.00014798,2]
[337457229,1725675100754,-592.77,0.00014798,2]
[337457230,1725675100764,-151.0,0.00014798,2]
[337457231,1725675100774,-500.0,0.00014798,2]
[337457232,1725675100784,-534.41,0.00014798,2]
[337457233,1725675100794,-1729.67,0.00014798,2]
[337457234,1725675100804,-500.0,0.00014798,2]
[337457235,1725675100814,-500.0,0.00014798,2]
[337457236,1725675100823,-3565.92,0.00014798,2]
[337457237,1725675100833,-621.88,0.00014798,2]
[337457238,1725675100843,-500.0,0.00014798,2]
[337457239,1725675100852,-500.0,0.00014798,2]
[337457240,1725675100862,-2471.51,0.00014798,2]
[337457241,1725675100871,-500.0,0.00014798,2]
[337457242,1725675100881,-500.0,0.00014798,2]
[337457243,1725675100891,-500.0,0.00014798,2]
[337457244,1725675100901,-2431.45,0.00014798,2]
[337457245,1725675100911,-9941.85,0.00014798,2]
[337457246,1725675100921,-1304.99,0.00014798,2]
[337457247,1725675100931,-670.44,0.00014798,2]
[337457248,1725675100940,-948.736054,0.00014798,2]
[337457249,1725675100951,-729.46,0.00014798,2]
[337457250,1725675100960,-11713.04,0.00014798,2]
[337457251,1725675100970,-948.736054,0.00014798,2]
[337457252,1725675100982,-500.0,0.00014798,2]
[337457253,1725675100992,-699.59,0.00014798,2]
[337457254,1725675101001,-500.0,0.00014798,2]
[337457255,1725675101011,-236.775749,0.00014798,2]
[337457256,1725675101021,-200.663132,0.00014798,2]
[337457257,1725675101031,-586.03363024,0.00014798,2]
[337457258,1725675101041,-500.0,0.00014798,2]
[337457259,1725675101052,-236.775749,0.00014798,2]
[337457260,1725675101063,-200.663132,0.00014798,2]
[337457261,1725675101074,-500.0,0.00014798,2]
[337457262,1725675101083,-685.69,0.00014798,2]
[337457263,1725675101094,-527.13,0.00014798,2]
[337457264,1725675101104,-500.0,0.00014798,2]
[337457265,1725675101114,-1552.47,0.00014798,2]
[337457266,1725675101124,-627.43,0.00014798,2]
[337457267,1725675101134,-500.0,0.00014798,2]
[337457268,1725675101145,-500.0,0.00014798,2]
[337457269,1725675101155,-500.0,0.00014798,2]
[337457270,1725675101165,-500.0,0.00014798,2]
[337457271,1725675101177,-500.0,0.00014798,2]
[337457272,1725675101187,-766.867856,0.00014798,2]
[337457273,1725675101198,-564.65,0.00014798,2]
[337457274,1725675101208,-500.0,0.00014798,2]
[337457275,1725675101218,-740.83,0.00014798,2]
[337457276,1725675101230,-587.61,0.00014798,2]
[337457277,1725675101240,-2774.61,0.00014798,2]
[337457278,1725675101250,-766.867856,0.00014798,2]
[337457279,1725675101261,-1449.59,0.00014798,2]
[337457280,1725675101271,-6711.69,0.00014798,2]
[337457281,1725675101281,-500.0,0.00014798,2]
[337457282,1725675101292,-732.74,0.00014798,2]
[337457283,1725675101302,-500.0,0.00014798,2]
[337457284,1725675101312,-677.05,0.00014798,2]
[337457285,1725675101321,-500.0,0.00014798,2]
[337457286,1725675101331,-899.67,0.00014798,2]
[337457287,1725675101341,-863.46,0.00014798,2]
[337457288,1725675101351,-500.0,0.00014798,2]
[337457289,1725675101361,-1565.46,0.00014798,2]
[337457290,1725675101371,-673.31,0.00014798,2]
[337457291,1725675101381,-1057.44,0.00014798,2]
[337457292,1725675101390,-1252.18,0.00014798,2]
[337457293,1725675101400,-1043.92,0.00014798,2]
[337457294,1725675101410,-1511.09,0.00014798,2]
[337457295,1725675101420,-521.15,0.00014798,2]
[337457296,1725675101431,-806.69,0.00014798,2]
[337457297,1725675101443,-500.0,0.00014798,2]
[337457298,1725675101454,-500.0,0.00014798,2]
[337457299,1725675101464,-537.85,0.00014798,2]
[337457300,1725675101474,-803.34,0.00014798,2]
[337457301,1725675101484,-500.0,0.00014798,2]
[337457302,1725675101494,-151.338339,0.00014799,2]
[337457303,1725675101505,-207.751249,0.00014799,2]
[337457304,1725675101515,-151.0,0.00014799,2]
[337457305,1725675101525,-207.751249,0.00014799,2]
[337457306,1725675101535,-151.0,0.00014799,2]
[337457307,1725675101545,-151.335961,0.00014799,2]
[337457308,1725675101557,-250.504876,0.00014799,2]
[337457309,1725675101569,-250.504876,0.00014799,2]
[337457310,1725675101581,-164.256043,0.00014799,2]
[337457311,1725675101592,-151.0,0.00014799,2]
[337457312,1725675101604,-164.256043,0.00014799,2]
[337457313,1725675101614,-553.17,0.00014799,2]
[337457314,1725675101625,-151.0,0.00014799,2]
[337457315,1725675101636,-151.0,0.00014799,2]
[337457316,1725675101645,-151.0,0.00014799,2]
[337457317,1725675101655,-151.0,0.00014799,2]
[337457318,1725675101665,-345.253506,0.00014799,2]
[337457319,1725675101677,-345.253506,0.00014799,2]
[337457320,1725675101687,-151.0,0.00014799,2]
[337457321,1725675101697,-902.897713,0.00014799,2]
[337457322,1725675101706,-151.0,0.00014799,2]
[337457323,1725675101717,-902.897713,0.00014799,2]
[337457324,1725675101727,-151.0,0.00014799,2]
[337457325,1725675101737,-151.0,0.00014799,2]
[337457326,1725675101748,-152.454727,0.00014799,2]
[337457327,1725675101759,-588.098262,0.00014799,2]
[337457328,1725675101771,-588.098262,0.00014799,2]
[337457329,1725675101781,-500.0,0.00014799,2]
[337457330,1725675101793,-151.0,0.00014799,2]
[337457331,1725675101804,-583.29,0.00014799,2]
[337457332,1725675101814,-151.0,0.00014799,2]
[337457333,1725675101824,-578.12,0.00014799,2]
[337457334,1725675101835,-500.0,0.00014799,2]
[337457335,1725675101846,-500.0,0.00014799,2]
[337457336,1725675101857,-587.34,0.00014799,2]
[337457337,1725675101868,-500.0,0.00014799,2]
[337457338,1725675101879,-874.83,0.00014799,2]
[337457339,1725675101891,-500.0,0.00014799,2]
[337457340,1725675101902,-500.0,0.00014799,2]
[337457341,1725675101912,-151.0,0.00014799,2]
[337457342,1725675101922,-500.0,0.00014799,2]
[337457343,1725675101932,-500.0,0.00014799,2]
[337457344,1725675101943,-500.0,0.00014799,2]
[337457345,1725675101953,-151.0,0.00014799,2]
[337457346,1725675101963,-756.35,0.00014799,2]
[337457347,1725675101975,-587.51,0.00014799,2]
[337457348,1725675101986,-500.0,0.00014799,2]
[337457349,1725675101996,-720.63,0.00014799,2]
[337457350,1725675102007,-671.77,0.00014799,2]
[337457351,1725675102018,-151.423489,0.00014799,2]
[337457352,1725675102216,-500.0,0.00014799,2]
[337457353,1725675102226,-581.33,0.00014799,2]
[337457354,1725675102236,-1093.24,0.00014799,2]
[337457355,1725675102246,-500.0,0.00014799,2]
[337457356,1725675102255,-1946.28,0.00014799,2]
[337457357,1725675102265,-601.34,0.00014799,2]
[337457358,1725675102274,-1273.63,0.00014799,2]
[337457359,1725675102283,-620.66,0.00014799,2]
[337457360,1725675102293,-881.33,0.00014799,2]
[337457361,1725675102302,-500.0,0.00014799,2]
[337457362,1725675102312,-198.175146,0.00014799,2]
[337457363,1725675102322,-500.0,0.00014799,2]
[337457364,1725675102332,-198.175146,0.00014799,2]
[337457365,1725675102343,-151.843781,0.00014799,2]
[337457366,1725675102353,-500.0,0.00014799,2]
[337457367,1725675102363,-566.43,0.00014799,2]
[337457368,1725675102374,-1039.71,0.00014799,2]
[337457369,1725675102385,-500.0,0.00014799,2]
[337457370,1725675102396,-1649.943371,0.00014799,2]
[337457371,1725675102406,-1649.943371,0.00014799,2]
[337457372,1725675102416,-151.0,0.00014799,2]
[337457373,1725675102427,-535.86,0.00014799,2]
[337457374,1725675102439,-500.0,0.00014799,2]
[337457375,1725675102448,-500.0,0.00014799,2]
[337457376,1725675102458,-500.0,0.00014799,2]
[337457377,1725675102469,-500.0,0.00014799,2]
[337457378,1725675102479,-639.84,0.00014799,2]
[337457379,1725675102489,-1226.16,0.00014799,2]
[337457380,1725675102499,-349.79352034,0.00014799,2]
[337457381,1725675102510,-463.32932264,0.00014799,2]
[337457382,1725675102522,-1079.36,0.00014799,2]
[337457383,1725675102532,-900.85,0.00014799,2]
[337457384,1725675102542,-826.16,0.00014799,2]
[337457385,1725675102552,-568.35,0.00014799,2]
[337457386,1725675102562,-854.94,0.00014799,2]
[337457387,1725675102572,-500.0,0.00014799,2]
[337457388,1725675102581,-492.78792504,0.00014799,2]
[337457389,1725675102591,-674.07,0.00014799,2]
[337457390,1725675102600,-500.0,0.00014799,2]
[337457391,1725675102610,-500.0,0.00014799,2]
[337457392,1725675102620,-500.0,0.00014799,2]
[337457393,1725675102631,-500.0,0.00014799,2]
[337457394,1725675102641,-989.42,0.00014799,2]
[337457395,1725675102651,-1367.97,0.00014799,2]
[337457396,1725675102660,-672.33,0.00014799,2]
[337457397,1725675102673,-915.01,0.00014799,2]
[337457398,1725675102684,-500.0,0.00014799,2]
[337457399,1725675102695,-724.5,0.00014799,2]
[337457400,1725675102706,-500.0,0.00014799,2]
[337457401,1725675102718,-500.0,0.00014799,2]
[337457402,1725675102730,-729.49,0.00014799,2]
[337457403,1725675102739,-750.39,0.00014799,2]
[337457404,1725675102749,-683.34,0.00014799,2]
[337457405,1725675102760,-500.0,0.00014799,2]
[337457406,1725675102772,-840.66,0.00014799,2]
[337457407,1725675102782,-152.500511,0.00014799,2]
[337457408,1725675102793,-345.91805544,0.00014799,2]
[337457409,1725675102803,-500.0,0.00014799,2]
[337457410,1725675102813,-550.66,0.00014799,2]
[337457411,1725675102822,-500.0,0.00014799,2]
[337457412,1725675102832,-398.06249471,0.00014799,2]
[337457413,1725675102843,-500.0,0.00014799,2]
[337457414,1725675102852,-832.59,0.00014799,2]
[337457415,1725675102862,-500.0,0.00014799,2]
[337457416,1725675102873,-500.0,0.00014799,2]
[337457417,1725675102883,-425.04296322,0.00014799,2]
[337457418,1725675102893,-500.0,0.00014799,2]
[337457419,1725675102902,-500.0,0.00014799,2]
[337457420,1725675102911,-500.0,0.00014799,2]
[337457421,1725675102922,-1416.38,0.00014799,2]
[337457422,1725675102933,-151.0,0.00014799,2]
[337457423,1725675102942,-500.0,0.00014799,2]
[337457424,1725675102953,-665.15,0.00014799,2]
[337457425,1725675102963,-500.0,0.00014799,2]
[337457426,1725675102973,-320.059302,0.00014799,2]
[337457427,1725675102983,-1414.35,0.00014799,2]
[337457428,1725675102993,-320.059302,0.00014799,2]
[337457429,1725675103003,-608.13,0.00014799,2]
[337457430,1725675103012,-500.0,0.00014799,2]
[337457431,1725675103022,-500.0,0.00014799,2]
[337457432,1725675103031,-500.0,0.00014799,2]
[337457433,1725675103040,-859.7,0.00014799,2]
[337457434,1725675103050,-783.57,0.00014799,2]
[337457435,1725675103059,-668.69,0.00014799,2]
[337457436,1725675103068,-500.0,0.00014799,2]
[337457437,1725675103078,-151.0,0.00014799,2]
[337457438,1725675103087,-615.11,0.00014799,2]
[337457439,1725675103096,-500.0,0.00014799,2]
[337457440,1725675103106,-500.0,0.00014799,2]
[337457441,1725675103115,-500.0,0.00014799,2]
[337457442,1725675103124,-542.08,0.00014799,2]
[337457443,1725675103133,-699.53,0.00014799,2]
[337457444,1725675103142,-683.05,0.00014799,2]
[337457445,1725675103152,-1859.8,0.00014799,2]
[337457446,1725675103162,-151.0,0.00014799,2]
[337457447,1725675103171,-527.39,0.00014799,2]
[337457448,1725675103181,-773.39,0.00014799,2]
[337457449,1725675103191,-2581.59,0.00014799,2]
[337457450,1725675103202,-500.0,0.00014799,2]
[337457451,1725675103212,-615.022642,0.00014799,2]
[337457452,1725675103222,-559.78,0.00014799,2]
[337457453,1725675103231,-1824.1,0.00014799,2]
[337457454,1725675103240,-500.0,0.00014799,2]
[337457455,1725675103249,-500.0,0.00014799,2]
[337457456,1725675103259,-658.36,0.00014799,2]
[337457457,1725675103269,-500.0,0.00014799,2]
[337457458,1725675103279,-1523.29,0.00014799,2]
[337457459,1725675103288,-1349.37,0.00014799,2]
[337457460,1725675103297,-751.28,0.00014799,2]
[337457461,1725675103306,-500.0,0.00014799,2]
[337457462,1725675103315,-1032.08,0.00014799,2]
[337457463,1725675103324,-500.0,0.00014799,2]
[337457464,1725675103334,-662.78,0.00014799,2]
[337457465,1725675103343,-627.77,0.00014799,2]
[337457466,1725675103352,-6734.47,0.00014799,2]
[337457467,1725675103361,-6734.47,0.00014799,2]
[337457468,1725675103371,-643.39,0.00014799,2]
[337457469,1725675103379,-1888.51,0.00014799,2]
[337457470,1725675103388,-678.47,0.00014799,2]
[337457471,1725675103397,-596.1,0.00014799,2]
[337457472,1725675103411,-3787.08,0.00014799,2]
[337457473,1725675103420,-3787.08,0.00014799,2]
[337457474,1725675103429,-500.0,0.00014799,2]
[337457475,1725675103439,-661.08,0.00014799,2]
[337457476,1725675103449,-500.0,0.00014799,2]
[337457477,1725675103458,-500.0,0.00014799,2]
[337457478,1725675103468,-500.0,0.00014799,2]
[337457479,1725675103478,-4840.058022,0.00014799,2]
[337457480,1725675103487,-260.540861,0.00014799,2]
[337457481,1725675103497,-179.014698,0.00014799,2]
[337457482,1725675103506,-500.0,0.00014799,2]
[337457483,1725675103515,-500.0,0.00014799,2]
[337457484,1725675103525,-500.0,0.00014799,2]
[337457485,1725675103534,-500.0,0.00014799,2]
[337457486,1725675103544,-500.0,0.00014799,2]
[337457487,1725675103553,-509.51,0.00014799,2]
[337457488,1725675103563,-500.0,0.00014799,2]
[337457489,1725675103573,-308.80379797,0.00014799,2]
[337457490,1725675103584,-500.0,0.00014799,2]
[337457491,1725675103594,-500.0,0.00014799,2]
[337457492,1725675103604,-870.93,0.00014799,2]
[337457493,1725675103614,-870.93,0.00014799,2]
[337457494,1725675103624,-481.06518836,0.00014799,2]
[337457495,1725675103634,-613.69,0.00014799,2]
[337457496,1725675103644,-500.0,0.00014799,2]
[337457497,1725675103653,-620.32,0.00014799,2]
[337457498,1725675103663,-592.77,0.00014799,2]
[337457499,1725675103675,-500.0,0.00014799,2]
[337457500,1725675103685,-500.0,0.00014799,2]
[337457501,1725675103694,-151.0,0.00014799,2]
[337457502,1725675103704,-500.0,0.00014799,2]
[337457503,1725675103714,-534.41,0.00014799,2]
[337457504,1725675103724,-1729.67,0.00014799,2]
[337457505,1725675103737,-500.0,0.00014799,2]
[337457506,1725675103747,-1729.67,0.00014799,2]
[337457507,1725675103757,-500.0,0.00014799,2]
[337457508,1725675103766,-1729.67,0.00014799,2]
[337457509,1725675103776,-1729.67,0.00014799,2]
[337457510,1725675103786,-1729.69207333,0.00014799,2]
[337457511,1725675103795,-3565.92,0.00014799,2]
[337457512,1725675103805,-621.88,0.00014799,2]
[337457513,1725675103814,-3565.92,0.00014799,2]
[337457514,1725675103825,-500.0,0.00014799,2]
[337457515,1725675103835,-3565.92,0.00014799,2]
[337457516,1725675103845,-3565.92,0.00014799,2]
[337457517,1725675103857,-3566.08621616,0.00014799,2]
[337457518,1725675103869,-500.0,0.00014799,2]
[337457519,1725675103879,-2471.51,0.00014799,2]
[337457520,1725675103890,-2471.51,0.00014799,2]
[337457521,1725675103899,-484.65621963,0.00014799,2]
[337457522,1725675103908,-2471.51,0.00014799,2]
[337457523,1725675103917,-2471.51,0.00014799,2]
[337457524,1725675103926,-2471.58960234,0.00014799,2]
[337457525,1725675103938,-500.0,0.00014799,2]
[337457526,1725675103949,-500.0,0.00014799,2]
[337457527,1725675103959,-2431.45,0.00014799,2]
[337457528,1725675103970,-9941.85,0.00014799,2]
[337457529,1725675103982,-9941.85,0.00014799,2]
[337457530,1725675103991,-9941.85,0.00014799,2]
[337457531,1725675104000,-9941.85,0.00014799,2]
[337457532,1725675104009,-1304.99,0.00014799,2]
[337457533,1725675104018,-9941.89997918,0.00014799,2]
[337457534,1725675104029,-670.44,0.00014799,2]
[337457535,1725675104039,-948.736054,0.00014799,2]
[337457536,1725675104051,-729.46,0.00014799,2]
[337457537,1725675104062,-11713.04,0.00014799,2]
[337457538,1725675104072,-948.736062,0.00014799,2]
[337457539,1725675104083,-503.13511498,0.00014799,2]
[337457540,1725675104094,-699.59,0.00014799,2]
[337457541,1725675104103,-503.25845622,0.00014799,2]
[337457542,1725675104113,-236.775749,0.00014799,2]
[337457543,1725675104122,-200.663132,0.00014799,2]
[337457544,1725675104132,-500.0,0.00014799,2]
[337457545,1725675104141,-500.0,0.00014799,2]
[337457546,1725675104152,-290.88065746,0.00014799,2]
[337457547,1725675104163,-236.775751,0.00014799,2]
[337457548,1725675104174,-200.663129,0.00014799,2]
[337457549,1725675104183,-500.0,0.00014799,2]
[337457550,1725675104192,-685.69,0.00014799,2]
[337457551,1725675104202,-527.13,0.00014799,2]
[337457552,1725675104211,-567.32,0.00014799,2]
[337457553,1725675104221,-1552.47,0.00014799,2]
[337457554,1725675104233,-627.43,0.00014799,2]
[337457555,1725675104243,-500.0,0.00014799,2]
[337457556,1725675104253,-500.0,0.00014799,2]
[337457557,1725675104262,-467.48,0.00014799,2]
[337457558,1725675104272,-500.0,0.00014799,2]
[337457559,1725675104281,-500.0,0.00014799,2]
[337457560,1725675104291,-766.867856,0.00014799,2]
[337457561,1725675104300,-564.65,0.00014799,2]
[337457562,1725675104310,-500.0,0.00014799,2]
[337457563,1725675104320,-740.83,0.00014799,2]
[337457564,1725675104330,-587.61,0.00014799,2]
[337457565,1725675104339,-2774.61,0.00014799,2]
[337457566,1725675104348,-766.86786,0.00014799,2]
[337457567,1725675104359,-1449.59,0.00014799,2]
[337457568,1725675104369,-6711.69,0.00014799,2]
[337457569,1725675104378,-500.0,0.00014799,2]
[337457570,1725675104388,-732.74,0.00014799,2]
[337457571,1725675104398,-500.0,0.00014799,2]
[337457572,1725675104407,-677.05,0.00014799,2]
[337457573,1725675104416,-500.0,0.00014799,2]
[337457574,1725675104426,-863.46,0.00014799,2]
[337457575,1725675104435,-899.67,0.00014799,2]
[337457576,1725675104446,-899.67,0.00014799,2]
[337457577,1725675104456,-500.0,0.00014799,2]
[337457578,1725675104466,-1565.46,0.00014799,2]
[337457579,1725675104478,-673.31,0.00014799,2]
[337457580,1725675104488,-1057.44,0.00014799,2]
[337457581,1725675104498,-1252.18,0.00014799,2]
[337457582,1725675104509,-1057.44,0.00014799,2]
[337457583,1725675104521,-1252.18,0.00014799,2]
[337457584,1725675104532,-1057.44,0.00014799,2]
[337457585,1725675104542,-1057.44,0.00014799,2]
[337457586,1725675104552,-1057.50665568,0.00014799,2]
[337457587,1725675104562,-1043.92,0.00014799,2]
[337457588,1725675104573,-1511.09,0.00014799,2]
[337457589,1725675104664,-521.15,0.00014799,2]